Workbook

Sheet Sheet1
F1: УТВЕРЖДАЮ
F2: Директор школы
F3: ____________________/Л.Л.Пачина/
F4: Приказ № 119 «25» августа 2025г.
C5: Примерное 10-дневное меню для учащихся
C6: Муниципального общеобразовательного учреждения
C7: «Дубровская средняя общеобразовательная школа»
C8: (Меню разработано на основании сборника «Сборник технологических нормативов, рецептур блюд и кулинарных изделий» автор: Перевалов А.Я., Тапешкина Н.В., 2021г.)
A12: Меню раскладка для учащихся от 7 до 12 лет на 2025-2026 учебный год
B14: Прием пищи | C14: Наименование блюда | D14: Вес блюда, г | E14: Пищевые вещества | H14: Энергетическая ценность | I14: № рецептуры
E15: Белки | F15: Жиры | G15: Углеводы
B16: Неделя 1 День 1
B17: Завтрак | C17: Суп молочный с рисом | D17: 250 | E17: 6 | F17: 6.25 | G17: 20.55 | H17: 162.5 | I17: 140
C18: Чай с сахаром | D18: 200 | E18: 0.2 | F18: 0.1 | G18: 9.3 | H18: 38 | I18: 457
C19: Хлеб пшеничный | D19: 60 | E19: 4.56 | F19: 0.48 | G19: 29.52 | H19: 140.4 | I19: 573
B20: Обед | C20: Кура отварная с подливом | D20: 100 | E20: 9.5 | F20: 11.07 | G20: 2.2 | H20: 146.43 | I20: 367
C21: Макароны отв. с маслом | D21: 200 | E21: 7.4 | F21: 6.6 | G21: 39.4 | H21: 246 | I21: 256
C22: Кисель | D22: 200 | E22: 0 | F22: 0 | G22: 15 | H22: 60 | I22: 484
C23: Хлеб пшеничный | D23: 60 | E23: 4.56 | F23: 0.48 | G23: 29.52 | H23: 140.4 | I23: 573
B24: ИТОГО | D24: =SUM(D17:D23) -> 1070 | E24: =SUM(E17:E23) -> 32.22 | F24: =SUM(F17:F23) -> 24.98 | G24: =SUM(G17:G23) -> 145.49 | H24: =SUM(H17:H23) -> 933.73
B25: Неделя 1 День 2
B26: Завтрак | C26: Каша молочная ячневая | D26: 250 | E26: 8.83 | F26: 8.1 | G26: 40.4 | H26: 269.76 | I26: 227
C27: Какао с молоком | D27: 200 | E27: 3.3 | F27: 2.9 | G27: 13.8 | H27: 94 | I27: 462
C28: Хлеб пшеничный | D28: 60 | E28: 4.56 | F28: 0.48 | G28: 29.52 | H28: 140.4 | I28: 573
B29: Обед | C29: Котлета мясная | D29: 100 | E29: 9 | F29: 21 | G29: 8 | H29: 260 | I29: 372
C30: Рис с овощами | D30: 200 | E30: 5.54 | F30: 3.54 | G30: 47.23 | H30: 243.8 | I30: 241
C31: Компот из сухофруктов | D31: 200 | E31: 0.6 | F31: 0.1 | G31: 20.1 | H31: 84 | I31: 495
C32: Хлеб пшеничный | D32: 80 | E32: 6.08 | F32: 0.64 | G32: 39.36 | H32: 187.2 | I32: 573
B33: ИТОГО | D33: =SUM(D26:D32) -> 1090 | E33: =SUM(E26:E32) -> 37.91 | F33: =SUM(F26:F32) -> 36.76 | G33: =SUM(G26:G32) -> 198.41 | H33: =SUM(H26:H32) -> 1279.16
B34: Неделя 1 День 3
B35: Завтрак | C35: Запеканка творожная со сгущённым молоком | D35: 210 | E35: 39.4 | F35: 15.4 | G35: 30 | H35: 388 | I35: 279
C36: Чай с сахаром | D36: 200 | E36: 0.2 | F36: 0.1 | G36: 9.3 | H36: 38 | I36: 457
C37: Хлеб пшеничный | D37: 60 | E37: 4.56 | F37: 0.48 | G37: 29.52 | H37: 140.4 | I37: 573
B38: Обед | C38: Жаркое по-домашнему | D38: 200 | E38: 18.8 | F38: 14.3 | G38: 25.8 | H38: 307 | I38: 328
C39: Чай с сахаром | D39: 200 | E39: 0.2 | F39: 0.1 | G39: 9.3 | H39: 38 | I39: 457
C40: Хлеб пшеничный | D40: 80 | E40: 6.08 | F40: 0.64 | G40: 39.36 | H40: 187.2 | I40: 573
B41: ИТОГО | D41: =SUM(D35:D40) -> 950 | E41: =SUM(E35:E40) -> 69.24 | F41: =SUM(F35:F40) -> 31.02 | G41: =SUM(G35:G40) -> 143.28 | H41: =SUM(H35:H40) -> 1098.6
B42: Неделя 1 День 4
B43: Завтрак | C43: Каша манная молочная | D43: 205 | E43: 7.38 | F43: 6.6 | G43: 35.4 | H43: 229.6 | I43: 214
C44: Кисель | D44: 200 | E44: 0 | F44: 0 | G44: 15 | H44: 60 | I44: 484
C45: Хлеб пшеничный | D45: 60 | E45: 4.56 | F45: 0.48 | G45: 29.52 | H45: 140.4 | I45: 573
C46: Печенье | D46: 35 | E46: 2.6 | F46: 3.4 | G46: 26.04 | H46: 145.3 | I46: 582
B47: Обед | C47: Котлета мясная | D47: 100 | E47: 9 | F47: 21 | G47: 8 | H47: 260 | I47: 372
C48: Макароны отварные | D48: 200 | E48: 7.4 | F48: 6.6 | G48: 39.4 | H48: 246 | I48: 256
C49: Компот из яблок | D49: 200 | E49: 0.3 | F49: 0.2 | G49: 14.2 | H49: 60 | I49: 487
C50: Хлеб пшеничный | D50: 60 | E50: 4.56 | F50: 0.48 | G50: 29.52 | H50: 140.4 | I50: 573
B51: ИТОГО | D51: =SUM(D43:D50) -> 1060 | E51: =SUM(E43:E50) -> 35.8 | F51: =SUM(F43:F50) -> 38.76 | G51: =SUM(G43:G50) -> 197.08 | H51: =SUM(H43:H50) -> 1281.7
B52: Неделя 1 День 5
B53: Завтрак | C53: Макаронны запечённые с тёртым сыром | D53: 250 | E53: 15 | F53: 12.5 | G53: 44.13 | H53: 350 | I53: 259
C54: Кофейный напиток | D54: 200 | E54: 1.4 | F54: 1.2 | G54: 11.4 | H54: 63 | I54: 464
C55: Хлеб пшеничный | D55: 60 | E55: 4.56 | F55: 0.48 | G55: 29.52 | H55: 140.4 | I55: 573
B56: Обед | C56: Минтай припущенный в молоке | D56: 100 | E56: 13.8 | F56: 1.2 | G56: 3 | H56: 78 | I56: 297
C57: Рис отварной | D57: 200 | E57: 5.02 | F57: 7.24 | G57: 51.8 | H57: 292.4 | I57: 385
C58: Компот из сухофруктов | D58: 200 | E58: 0.6 | F58: 0.1 | G58: 20.1 | H58: 84 | I58: 495
C59: Хлеб пшеничный | D59: 60 | E59: 4.56 | F59: 0.48 | G59: 29.52 | H59: 140.4 | I59: 573
B60: ИТОГО | D60: =SUM(D53:D59) -> 1070 | E60: =SUM(E53:E59) -> 44.94 | F60: =SUM(F53:F59) -> 23.2 | G60: =SUM(G53:G59) -> 189.47 | H60: =SUM(H53:H59) -> 1148.2
B61: Среднее значение за 1 неделю | D61: =AVERAGE(D24,D33,D41,D51,D60) -> 1048 | E61: =AVERAGE(E24,E33,E41,E51,E60) -> 44.022 | F61: =AVERAGE(F24,F33,F41,F51,F60) -> 30.944 | G61: =AVERAGE(G24,G33,G41,G51,G60) -> 174.746 | H61: =AVERAGE(H24,H33,H41,H51,H60) -> 1148.278
B62: Неделя 2 День 1
B63: Завтрак | C63: Суп молочный с вермишелью | D63: 250 | E63: 7.2 | F63: 8.1 | G63: 24.63 | H63: 200.25 | I63: 139
C64: Какао с молоком | D64: 200 | E64: 3.3 | F64: 2.9 | G64: 13.8 | H64: 94 | I64: 462
C65: Хлеб пшеничный | D65: 60 | E65: 4.56 | F65: 0.48 | G65: 29.52 | H65: 140.4 | I65: 573
C66: Плов из отварной птицы | D66: 200 | E66: 12.3 | F66: 8.2 | G66: 24.8 | H66: 223 | I66: 375
C67: Чай с сахаром | D67: 200 | E67: 0.2 | F67: 0.1 | G67: 9.3 | H67: 38 | I67: 457
C68: Хлеб пшеничный | D68: 80 | E68: 6.08 | F68: 0.64 | G68: 39.36 | H68: 187.2 | I68: 573
B69: ИТОГО | D69: =SUM(D63:D68) -> 990 | E69: =SUM(E63:E68) -> 33.64 | F69: =SUM(F63:F68) -> 20.42 | G69: =SUM(G63:G68) -> 141.41 | H69: =SUM(H63:H68) -> 882.85
B70: Неделя 2 День 2
B71: Завтрак | C71: Каша пшённая молочная | D71: 250 | E71: 10.34 | F71: 9.36 | G71: 45.31 | H71: 306.83 | I71: 225
C72: Чай с сахаром | D72: 200 | E72: 0.2 | F72: 0.1 | G72: 9.3 | H72: 38 | I72: 457
C73: Хлеб пшеничный | D73: 60 | E73: 4.56 | F73: 0.48 | G73: 29.52 | H73: 140.4 | I73: 573
B74: Обед | C74: Котлета мясная | D74: 100 | E74: 9 | F74: 21 | G74: 8 | H74: 260 | I74: 372
C75: Каша гречневая с маслом | D75: 150 | E75: 8.5 | F75: 6.36 | G75: 37.7 | H75: 242.16 | I75: 202
C76: Компот из сухофруктов | D76: 200 | E76: 0.6 | F76: 0.1 | G76: 20.1 | H76: 84 | I76: 495
C77: Хлеб пшеничный | D77: 80 | E77: 6.08 | F77: 0.64 | G77: 39.36 | H77: 187.2 | I77: 573
B78: ИТОГО | D78: =SUM(D71:D77) -> 1040 | E78: =SUM(E71:E77) -> 39.28 | F78: =SUM(F71:F77) -> 38.04 | G78: =SUM(G71:G77) -> 189.29 | H78: =SUM(H71:H77) -> 1258.59
B79: Неделя 2 День 3
B80: Завтрак | C80: Каша рисовая молочная жидкая | D80: 250 | E80: 6.1 | F80: 7.07 | G80: 44.56 | H80: 266.34 | I80: 217
C81: Кофейный напиток | D81: 200 | E81: 1.4 | F81: 1.2 | G81: 11.4 | H81: 63 | I81: 464
C82: Хлеб пшеничный | D82: 60 | E82: 4.56 | F82: 0.48 | G82: 29.52 | H82: 140.4 | I82: 573
B83: Обед | C83: Кура отварная с подливом | D83: 100 | E83: 9.5 | F83: 11.07 | G83: 2.2 | H83: 146.43 | I83: 367
C84: Макароны отв. с маслом | D84: 200 | E84: 7.4 | F84: 6.6 | G84: 39.4 | H84: 246 | I84: 256
C85: Кисель | D85: 200 | E85: 0 | F85: 0 | G85: 15 | H85: 60 | I85: 484
C86: Хлеб пшеничный | D86: 60 | E86: 4.56 | F86: 0.48 | G86: 29.52 | H86: 140.4 | I86: 573
B87: ИТОГО | D87: =SUM(D80:D86) -> 1070 | E87: =SUM(E80:E86) -> 33.52 | F87: =SUM(F80:F86) -> 26.9 | G87: =SUM(G80:G86) -> 171.6 | H87: =SUM(H80:H86) -> 1062.57
B88: Неделя 2 День 4
B89: Завтрак | C89: Омлет натуральный | D89: 250 | E89: 21.54 | F89: 32.7 | G89: 5.38 | H89: 476 | I89: 268
C90: Чай с сахаром | D90: 200 | E90: 0.2 | F90: 0.1 | G90: 9.3 | H90: 38 | I90: 457
C91: Хлеб пшеничный | D91: 60 | E91: 4.56 | F91: 0.48 | G91: 29.52 | H91: 140.4 | I91: 573
B92: Обед | C92: Котлета мясная | D92: 100 | E92: 9 | F92: 21 | G92: 8 | H92: 260 | I92: 372
C93: Рис с овощами | D93: 200 | E93: 5.54 | F93: 3.54 | G93: 47.23 | H93: 243.8 | I93: 241
C94: Сок фруктовый | D94: 200 | E94: 0.5 | F94: 0.1 | G94: 10.1 | H94: 43 | I94: 501
C95: Хлеб пшеничный | D95: 60 | E95: 4.56 | F95: 0.48 | G95: 29.52 | H95: 140.4 | I95: 573
B96: ИТОГО | D96: =SUM(D89:D95) -> 1070 | E96: =SUM(E89:E95) -> 45.9 | F96: =SUM(F89:F95) -> 58.4 | G96: =SUM(G89:G95) -> 139.05 | H96: =SUM(H89:H95) -> 1341.6
B97: Неделя 2 День 5
B98: Завтрак | C98: Каша молочная «Дружба» с маслом | D98: 240 | E98: 6.08 | F98: 7.73 | G98: 32.31 | H98: 223.14 | I98: 229
C99: Какао с молоком | D99: 200 | E99: 3.3 | F99: 2.9 | G99: 13.8 | H99: 94 | I99: 462
C100: Хлеб пшеничный | D100: 60 | E100: 4.56 | F100: 0.48 | G100: 29.52 | H100: 140.4 | I100: 573
B101: Обед | C101: Печень по-строгановски | D101: 100 | E101: 19.5 | F101: 9.4 | G101: 7.6 | H101: 193 | I101: 356
C102: Пюре картофельное | D102: 200 | E102: 5.4 | F102: 8 | G102: 11.6 | H102: 140 | I102: 377
C103: Компот из сухофруктов | D103: 200 | E103: 0.6 | F103: 0.1 | G103: 20.1 | H103: 84 | I103: 495
C104: Хлеб пшеничный | D104: 80 | E104: 6.08 | F104: 0.64 | G104: 39.36 | H104: 187.2 | I104: 573
B105: ИТОГО | D105: =SUM(D98:D104) -> 1080 | E105: =SUM(E98:E104) -> 45.52 | F105: =SUM(F98:F104) -> 29.25 | G105: =SUM(G98:G104) -> 154.29 | H105: =SUM(H98:H104) -> 1061.74
B106: Среднее значение за 2 неделю | D106: =AVERAGE(D69,D78,D87,D96,D105) -> 1050 | E106: =AVERAGE(E69,E78,E87,E96,E105) -> 39.572 | F106: =AVERAGE(F69,F78,F87,F96,F105) -> 34.602 | G106: =AVERAGE(G69,G78,G87,G96,G105) -> 159.128 | H106: =AVERAGE(H69,H78,H87,H96,H105) -> 1121.47
B107: Среднее значение за 10 дней | D107: =AVERAGE(D61,D106) -> 1049 | E107: =AVERAGE(E61,E106) -> 41.797 | F107: =AVERAGE(F61,F106) -> 32.773 | G107: =AVERAGE(G61,G106) -> 166.937 | H107: =AVERAGE(H61,H106) -> 1134.874

Sheet 2

Sheet 3
